fUSD/lending_fUSD_20240524
["ID","MTS","AMOUNT","RATE_DAILY","PERIOD"]
[327847219,1716556244518,-500.0,0.00013014,2]
[327847220,1716556244540,-500.0,0.00013014,2]
[327847221,1716556244557,-500.0,0.00013014,2]
[327847222,1716556244575,-500.0,0.00013014,2]
[327847223,1716556244597,-500.0,0.00013014,2]
[327847224,1716556244617,-500.0,0.00013014,2]
[327847225,1716556244638,-500.0,0.00013014,2]
[327847226,1716556244659,-500.0,0.00013014,2]
[327847227,1716556244683,-500.0,0.00013014,2]
[327847228,1716556244708,-500.0,0.00013014,2]
[327847229,1716556244722,-500.0,0.00013014,2]
[327847230,1716556244742,-500.0,0.00013014,2]
[327847231,1716556244755,-500.0,0.00013014,2]
[327847232,1716556244775,-500.0,0.00013014,2]
[327847233,1716556244793,-500.0,0.00013014,2]
[327847234,1716556244823,-500.0,0.00013014,2]
[327847235,1716556244844,-500.0,0.00013014,2]
[327847236,1716556244865,-500.0,0.00013014,2]
[327847237,1716556244882,-500.0,0.00013014,2]
[327847238,1716556244899,-500.0,0.00013014,2]
[327847239,1716556244916,-500.0,0.00013014,2]
[327847240,1716556244934,-500.0,0.00013014,2]
[327847241,1716556244951,-500.0,0.00013014,2]
[327847242,1716556244970,-500.0,0.00013014,2]
[327847243,1716556244987,-500.0,0.00013014,2]
[327847244,1716556245002,-500.0,0.00013014,2]
[327847245,1716556245018,-500.0,0.00013014,2]
[327847246,1716556245035,-500.0,0.00013014,2]
[327847247,1716556245050,-500.0,0.00013014,2]
[327847248,1716556245067,-500.0,0.00013014,2]
[327847249,1716556245083,-500.0,0.00013014,2]
[327847250,1716556245099,-500.0,0.00013014,2]
[327847251,1716556245115,-500.0,0.00013014,2]
[327847252,1716556245130,-500.0,0.00013014,2]
[327847253,1716556245147,-500.0,0.00013014,2]
[327847254,1716556245162,-500.0,0.00013014,2]
[327847255,1716556245178,-500.0,0.00013014,2]
[327847256,1716556245192,-500.0,0.00013014,2]
[327847257,1716556245207,-500.0,0.00013014,2]
[327847258,1716556245222,-500.0,0.00013014,2]
[327847259,1716556245237,-500.0,0.00013014,2]
[327847260,1716556245252,-500.0,0.00013014,2]
[327847261,1716556245268,-500.0,0.00013014,2]
[327847262,1716556245282,-500.0,0.00013014,2]
[327847263,1716556245297,-500.0,0.00013014,2]
[327847264,1716556245313,-500.0,0.00013014,2]
[327847265,1716556245327,-500.0,0.00013014,2]
[327847266,1716556245342,-500.0,0.00013014,2]
[327847267,1716556245357,-500.0,0.00013014,2]
[327847268,1716556245371,-500.0,0.00013014,2]
[327847269,1716556245386,-500.0,0.00013014,2]
[327847270,1716556245402,-500.0,0.00013014,2]
[327847271,1716556245417,-500.0,0.00013014,2]
[327847272,1716556245432,-500.0,0.00013014,2]
[327847273,1716556245447,-500.0,0.00013014,2]
[327847274,1716556245461,-500.0,0.00013014,2]
[327847275,1716556245476,-500.0,0.00013014,2]
[327847276,1716556245491,-500.0,0.00013014,2]
[327847277,1716556245505,-500.0,0.00013014,2]
[327847278,1716556245520,-500.0,0.00013014,2]
[327847279,1716556245535,-500.0,0.00013014,2]
[327847280,1716556245550,-500.0,0.00013014,2]
[327847281,1716556245565,-500.0,0.00013014,2]
[327847282,1716556245580,-500.0,0.00013014,2]
[327847283,1716556245736,-500.0,0.00013014,2]
[327847284,1716556245757,-500.0,0.00013014,2]
[327847285,1716556245766,-500.0,0.00013014,2]
[327847286,1716556245776,-500.0,0.00013014,2]
[327847287,1716556245786,-500.0,0.00013014,2]
[327847288,1716556245798,-500.0,0.00013014,2]
[327847289,1716556245808,-500.0,0.00013014,2]
[327847290,1716556245817,-500.0,0.00013014,2]
[327847291,1716556245827,-500.0,0.00013014,2]
[327847292,1716556245838,-500.0,0.00013014,2]
[327847293,1716556245847,-500.0,0.00013014,2]
[327847294,1716556245857,-500.0,0.00013014,2]
[327847295,1716556245866,-500.0,0.00013014,2]
[327847296,1716556245877,-500.0,0.00013014,2]
[327847297,1716556245886,-500.0,0.00013014,2]
[327847298,1716556245895,-500.0,0.00013014,2]
[327847299,1716556245906,-500.0,0.00013014,2]
[327847300,1716556245915,-500.0,0.00013014,2]
[327847301,1716556245924,-500.0,0.00013014,2]
[327847302,1716556245934,-500.0,0.00013014,2]
[327847305,1716556245943,-500.0,0.00013014,2]
[327847308,1716556245953,-500.0,0.00013014,2]
[327847311,1716556245963,-500.0,0.00013014,2]
[327847313,1716556245972,-500.0,0.00013014,2]
[327847316,1716556245981,-500.0,0.00013014,2]
[327847318,1716556245990,-500.0,0.00013014,2]
[327847321,1716556246000,-500.0,0.00013014,2]
[327847323,1716556246010,-500.0,0.00013014,2]
[327847326,1716556246019,-500.0,0.00013014,2]
[327847329,1716556246029,-500.0,0.00013014,2]
[327847331,1716556246038,-500.0,0.00013014,2]
[327847334,1716556246048,-500.0,0.00013014,2]
[327847336,1716556246058,-500.0,0.00013014,2]
[327847339,1716556246067,-500.0,0.00013014,2]
[327847340,1716556246076,-500.0,0.00013014,2]
[327847343,1716556246086,-500.0,0.00013014,2]
[327847344,1716556246095,-500.0,0.00013014,2]
[327847346,1716556246104,-500.0,0.00013014,2]
[327847348,1716556246113,-500.0,0.00013014,2]
[327847349,1716556246122,-500.0,0.00013014,2]
[327847351,1716556246132,-500.0,0.00013014,2]
[327847353,1716556246141,-500.0,0.00013014,2]
[327847354,1716556246150,-500.0,0.00013014,2]
[327847356,1716556246160,-500.0,0.00013014,2]
[327847357,1716556246169,-500.0,0.00013014,2]
[327847359,1716556246179,-500.0,0.00013014,2]
[327847361,1716556246189,-500.0,0.00013014,2]
[327847362,1716556246198,-500.0,0.00013014,2]
[327847364,1716556246208,-500.0,0.00013014,2]
[327847366,1716556246217,-500.0,0.00013014,2]
[327847367,1716556246227,-500.0,0.00013014,2]
[327847369,1716556246236,-500.0,0.00013014,2]
[327847371,1716556246246,-500.0,0.00013014,2]
[327847372,1716556246255,-500.0,0.00013014,2]
[327847374,1716556246264,-500.0,0.00013014,2]
[327847376,1716556246274,-500.0,0.00013014,2]
[327847377,1716556246284,-500.0,0.00013014,2]
[327847378,1716556246294,-500.0,0.00013014,2]
[327847379,1716556246303,-500.0,0.00013014,2]
[327847380,1716556246312,-500.0,0.00013014,2]
[327847382,1716556246321,-500.0,0.00013014,2]
[327847384,1716556246331,-500.0,0.00013014,2]
[327847386,1716556246340,-500.0,0.00013014,2]
[327847388,1716556246350,-500.0,0.00013014,2]
[327847390,1716556246359,-500.0,0.00013014,2]
[327847392,1716556246369,-500.0,0.00013014,2]
[327847394,1716556246379,-500.0,0.00013014,2]
[327847396,1716556246388,-500.0,0.00013014,2]
[327847398,1716556246397,-500.0,0.00013014,2]
[327847400,1716556246407,-500.0,0.00013014,2]
[327847402,1716556246416,-500.0,0.00013014,2]
[327847404,1716556246425,-500.0,0.00013014,2]
[327847406,1716556246435,-500.0,0.00013014,2]
[327847407,1716556246444,-500.0,0.00013014,2]
[327847409,1716556246453,-500.0,0.00013014,2]
[327847411,1716556246463,-500.0,0.00013014,2]
[327847413,1716556246473,-500.0,0.00013014,2]
[327847414,1716556246483,-500.0,0.00013014,2]
[327847416,1716556246492,-500.0,0.00013014,2]
[327847418,1716556246502,-500.0,0.00013014,2]
[327847420,1716556246512,-500.0,0.00013014,2]
[327847422,1716556246521,-500.0,0.00013014,2]
[327847424,1716556246531,-500.0,0.00013014,2]
[327847426,1716556246540,-500.0,0.00013014,2]
[327847428,1716556246549,-500.0,0.00013014,2]
[327847430,1716556246560,-500.0,0.00013014,2]
[327847432,1716556246569,-500.0,0.00013014,2]
[327847434,1716556246579,-500.0,0.00013014,2]
[327847435,1716556246588,-500.0,0.00013014,2]
[327847436,1716556246598,-500.0,0.00013014,2]
[327847437,1716556246608,-500.0,0.00013014,2]
[327847438,1716556246618,-500.0,0.00013014,2]
[327847439,1716556246627,-500.0,0.00013014,2]
[327847440,1716556246637,-500.0,0.00013014,2]
[327847441,1716556246646,-500.0,0.00013014,2]
[327847442,1716556246656,-500.0,0.00013014,2]
[327847443,1716556246665,-500.0,0.00013014,2]
[327847444,1716556246675,-500.0,0.00013014,2]
[327847445,1716556246685,-500.0,0.00013014,2]
[327847446,1716556246694,-500.0,0.00013014,2]
[327847447,1716556246704,-500.0,0.00013014,2]
[327847448,1716556246713,-500.0,0.00013014,2]
[327847449,1716556246722,-500.0,0.00013014,2]
[327847450,1716556246732,-500.0,0.00013014,2]
[327847451,1716556246741,-500.0,0.00013014,2]
[327847452,1716556246751,-500.0,0.00013014,2]
[327847453,1716556246761,-500.0,0.00013014,2]
[327847454,1716556246770,-500.0,0.00013014,2]
[327847455,1716556246780,-500.0,0.00013014,2]
[327847456,1716556246794,-500.0,0.00013014,2]
[327847457,1716556246805,-500.0,0.00013014,2]
[327847458,1716556246814,-500.0,0.00013014,2]
[327847459,1716556246823,-500.0,0.00013014,2]
[327847460,1716556246835,-500.0,0.00013014,2]
[327847461,1716556246844,-500.0,0.00013014,2]
[327847462,1716556246854,-500.0,0.00013014,2]
[327847463,1716556246863,-500.0,0.00013014,2]
[327847464,1716556246873,-500.0,0.00013014,2]
[327847465,1716556246883,-500.0,0.00013014,2]
[327847466,1716556246892,-500.0,0.00013014,2]
[327847467,1716556246902,-500.0,0.00013014,2]
[327847468,1716556246911,-500.0,0.00013014,2]
[327847469,1716556246921,-500.0,0.00013014,2]
[327847470,1716556246931,-500.0,0.00013014,2]
[327847471,1716556246941,-800.0,0.00013123,2]
[327847472,1716556246950,-168.14,0.00013189,2]
[327847473,1716556246960,-155.1,0.00013472,2]
[327847474,1716556246969,-633.59,0.00013569,2]
[327847475,1716556246979,-172.66,0.0001359,2]
[327847476,1716556246989,-1066.72,0.00013618,2]
[327847477,1716556246999,-200.0,0.00013699,2]
[327847478,1716556247009,-2751.0,0.00013699,2]
[327847479,1716556247019,-500.0,0.00013699,2]
[327847480,1716556247028,-4315.13,0.00013699,2]
[327847481,1716556247038,-200.0,0.00013699,2]
[327847482,1716556247047,-152.03490805,0.00013699,2]
[327847483,1716556247056,-321.02,0.00013973,2]
[327847484,1716556247067,-176.73,0.00013973,2]
[327847485,1716556247077,-480.73,0.00013973,2]
[327847486,1716556247087,-2000.0,0.00014,2]
[327847487,1716556247097,-155.11717398,0.00014,2]
[327847488,1716556247108,-200.0,0.00014092,2]
[327847489,1716556247118,-2712.86013848,0.00014135,2]
[327847490,1716556247127,-3743.38774493,0.00014151,2]
[327847491,1716556247137,-524.45,0.00014231,2]
[327847492,1716556247146,-800.0,0.00014359,2]
[327847493,1716556247156,-1788.767352,0.00014521,2]
[327847494,1716556247165,-155.0,0.00015,2]
[327847495,1716556247175,-2000.0,0.00015,2]
[327847496,1716556247185,-619.02429447,0.00015,2]
[327847497,1716556247195,-200.0,0.00015,2]
[327847498,1716556247206,-155.0,0.00015,2]
[327847499,1716556247215,-257.65395905,0.00015,2]
[327847500,1716556247225,-225.4365991,0.00015,2]
[327847501,1716556247234,-184.01261491,0.00015,2]
[327847502,1716556247244,-9759.06468539,0.00015,2]
[327847503,1716556247254,-486.0,0.00015,2]
[327847504,1716556247263,-3687.0,0.00015,2]
[327847505,1716556247273,-155.54656387,0.00015,2]
[327847506,1716556247282,-14567.4569776,0.00015,2]
[327847507,1716556247292,-5900.0,0.00015,2]
[327847508,1716556247301,-155.0,0.00015,2]
[327847509,1716556247311,-857.0,0.00015,2]
[327847510,1716556247321,-300.0,0.00015068,2]
[327847511,1716556247330,-1788.767352,0.00015342,2]
[327847512,1716556247340,-524.39,0.00015343,2]
[327847513,1716556247349,-979.87,0.00015343,2]
[327847514,1716556247359,-3000.0,0.0001537,2]
[327847515,1716556247368,-200.0,0.00015658,2]
[327847516,1716556247379,-5761.0,0.00015688,2]
[327847517,1716556247388,-289.0,0.00015688,2]
[327847518,1716556247398,-37015.975,0.00015688,2]
[327847519,1716556247409,-1466.0,0.00015688,2]
[327847520,1716556247419,-1466.0,0.00015688,2]
[327847521,1716556247428,-11063.26,0.00015753,2]
[327847522,1716556247439,-800.0,0.00015795,2]
[327847523,1716556247448,-166.65,0.00015831,2]
[327847524,1716556247458,-167.7,0.00015831,2]
[327847525,1716556247467,-633.59,0.00015833,2]
[327847526,1716556247477,-2000.0,0.00016,2]
[327847527,1716556247486,-150.0,0.00016,2]
[327847528,1716556247495,-150.0,0.00016,2]
[327847529,1716556247504,-150.0,0.00016,2]
[327847530,1716556247513,-150.0,0.00016,2]
[327847531,1716556247629,-150.0,0.00016,2]
[327847532,1716556247639,-150.0,0.00016,2]
[327847533,1716556247648,-150.0,0.00016,2]
[327847534,1716556247658,-150.0,0.00016,2]
[327847535,1716556247668,-5136.0,0.00016,2]
[327847536,1716556247677,-975.0,0.00016,2]
[327847537,1716556247686,-613.0,0.00016,2]
[327847538,1716556247696,-1644.0,0.00016,2]
[327847539,1716556247705,-439.0,0.00016,2]
[327847540,1716556247714,-1225.0,0.00016,2]
[327847541,1716556247724,-1211.0,0.00016,2]
[327847542,1716556247733,-150.0,0.00016,2]
[327847543,1716556247742,-2396.0,0.00016,2]
[327847544,1716556247752,-150.0,0.00016,2]
[327847545,1716556247762,-809.0,0.00016,2]
[327847546,1716556247771,-164.0,0.00016,2]
[327847547,1716556247780,-215.0,0.00016,2]
[327847548,1716556247792,-150.0,0.00016,2]
[327847549,1716556247801,-1650.0,0.00016,2]
[327847550,1716556247810,-1137.0,0.00016,2]
[327847551,1716556247820,-3163.0,0.00016,2]
[327847552,1716556247830,-9999.99,0.00016116,2]
[327847553,1716556247840,-1788.767352,0.00016164,2]
[327847554,1716556247849,-2712.86013848,0.00016311,2]
[327847555,1716556247860,-1066.72,0.00016358,2]
[327847556,1716556247869,-633.31,0.00016438,2]
[327847557,1716556247880,-300.0,0.00016438,2]
[327847558,1716556247890,-701.36,0.00016438,2]
[327847559,1716556247901,-172.66,0.00016473,2]
[327847560,1716556247910,-1227.2363061,0.000165,2]
[327847561,1716556247919,-3743.38774493,0.00016555,2]
[327847562,1716556247928,-166.65,0.00016702,2]
[327847563,1716556247940,-178.98,0.00016712,2]
[327847564,1716556247949,-413.854,0.00016774,2]
[327847565,1716556247959,-413.854,0.00016774,2]
[327847566,1716556247968,-413.854,0.00016774,2]
[327847567,1716556247977,-413.854,0.00016774,2]
[327847568,1716556247987,-413.854,0.00016774,2]
[327847569,1716556247996,-413.854,0.00016774,2]
[327847570,1716556248005,-413.854,0.00016774,2]
[327847571,1716556248015,-413.854,0.00016774,2]
[327847572,1716556248025,-413.854,0.00016774,2]
[327847573,1716556248034,-413.854,0.00016774,2]
[327847574,1716556248043,-1788.767352,0.00016986,2]
[327847575,1716556248053,-5082.48569887,0.00017,2]
[327847576,1716556248062,-2000.0,0.00017,2]
[327847577,1716556248072,-200.0,0.00017224,2]
[327847578,1716556248081,-7100.54042186,0.00017225,2]
[327847579,1716556248090,-800.0,0.00017231,2]
[327847580,1716556248099,-164.74,0.00017507,2]
[327847581,1716556248108,-166.65,0.00017573,2]
[327847582,1716556248118,-8398.66,0.00017728,2]
[327847583,1716556248128,-19999.99,0.00017728,2]
[327847584,1716556248137,-1788.767352,0.00017808,2]
[327847585,1716556248147,-3000.0,0.0001787,2]
[327847586,1716556248157,-2000.0,0.00018,2]
[327847587,1716556248167,-1154.93505512,0.00018,2]
[327847588,1716556248176,-1556.14244162,0.00018,2]
[327847589,1716556248186,-1109.51570502,0.00018,2]
[327847590,1716556248195,-633.59,0.00018097,2]
[327847591,1716556248205,-1659.76613375,0.000181,2]
[327847592,1716556248214,-212.0,0.00018191,3]
[327847593,1716556248223,-212.0,0.00018191,2]
[327847594,1716556248233,-166.65,0.00018444,2]
[327847595,1716556248242,-167.7,0.00018444,2]
[327847596,1716556248251,-2712.86013848,0.00018487,2]
[327847597,1716556248261,-1788.767352,0.0001863,2]
[327847598,1716556248270,-5761.0,0.00018688,2]
[327847599,1716556248279,-289.0,0.00018688,2]
[327847600,1716556248289,-1466.0,0.00018688,2]
[327847601,1716556248298,-200.0,0.00018789,2]
[327847602,1716556248307,-3743.38774493,0.00018958,2]
[327847603,1716556248317,-155.12834545,0.00019,2]
[327847604,1716556248326,-2000.0,0.00019,2]
[327847605,1716556248335,-410.5352738,0.00019,2]
[327847606,1716556248344,-1034.78007111,0.00019,2]
[327847607,1716556248354,-150.0,0.00019,2]
[327847608,1716556248363,-5136.0,0.00019,2]
[327847609,1716556248373,-975.0,0.00019,2]
[327847610,1716556248382,-613.0,0.00019,2]
[327847611,1716556248391,-1644.0,0.00019,2]
[327847612,1716556248400,-439.0,0.00019,2]
[327847613,1716556248409,-1225.0,0.00019,2]
[327847614,1716556248419,-1211.0,0.00019,2]
[327847615,1716556248428,-150.0,0.00019,2]
[327847616,1716556248438,-2396.0,0.00019,2]
[327847617,1716556248447,-150.0,0.00019,2]
[327847618,1716556248457,-809.0,0.00019,2]
[327847619,1716556248466,-164.0,0.00019,2]
[327847620,1716556248476,-215.0,0.00019,2]
[327847621,1716556248486,-150.0,0.00019,2]
[327847622,1716556248495,-1650.0,0.00019,2]
[327847623,1716556248504,-1137.0,0.00019,2]
[327847624,1716556248514,-3163.0,0.00019,2]
[327847625,1716556248522,-367.04733121,0.00019178,2]
[327847626,1716556248532,-500.0,0.00019178,2]
[327847627,1716556248541,-253.27705447,0.00019178,2]
[327847628,1716556248551,-500.0,0.00019178,2]
[327847629,1716556248561,-500.0,0.00019178,2]
[327847630,1716556248570,-500.0,0.00019178,2]
[327847631,1716556248580,-500.0,0.00019178,2]
[327847632,1716556248590,-500.0,0.00019178,2]
[327847633,1716556248600,-500.0,0.00019178,2]
[327847634,1716556248609,-500.0,0.00019178,2]
[327847635,1716556248620,-500.0,0.00019178,2]
[327847636,1716556248630,-500.0,0.00019178,2]
[327847637,1716556248640,-500.0,0.00019178,2]
[327847638,1716556248649,-500.0,0.00019178,2]
[327847639,1716556248658,-500.0,0.00019178,2]
[327847640,1716556248669,-500.0,0.00019178,2]
[327847641,1716556248679,-500.0,0.00019178,2]
[327847642,1716556248689,-195.17720365,0.00019178,2]
[327847643,1716556248699,-500.0,0.00019178,2]
[327847644,1716556248708,-500.0,0.00019178,2]
[327847645,1716556248718,-500.0,0.00019178,2]
[327847646,1716556248727,-500.0,0.00019178,2]
[327847647,1716556248737,-500.0,0.00019178,2]
[327847648,1716556248747,-500.0,0.00019178,2]
[327847649,1716556248757,-500.0,0.00019178,2]
[327847650,1716556248767,-500.0,0.00019178,2]
[327847651,1716556248776,-500.0,0.00019178,2]
[327847652,1716556248790,-500.0,0.00019178,2]
[327847653,1716556248799,-500.0,0.00019178,2]
[327847654,1716556248809,-500.0,0.00019178,2]
[327847655,1716556248819,-500.0,0.00019178,2]
[327847656,1716556248830,-500.0,0.00019178,2]
[327847657,1716556248841,-500.0,0.00019178,2]
[327847658,1716556248852,-500.0,0.00019178,2]
[327847659,1716556248865,-500.0,0.00019178,2]
[327847660,1716556248875,-258.2500902,0.00019178,2]
[327847661,1716556248885,-500.0,0.00019178,2]
[327847662,1716556248895,-500.0,0.00019178,2]
[327847663,1716556248906,-500.0,0.00019178,2]
[327847664,1716556248915,-500.0,0.00019178,2]
[327847665,1716556248924,-513.75562969,0.00019178,2]
[327847666,1716556248934,-195.10469938,0.00019178,2]
[327847667,1716556248944,-500.0,0.00019178,2]
[327847668,1716556248953,-500.0,0.00019178,2]
[327847669,1716556248962,-500.0,0.00019178,2]
[327847670,1716556248972,-500.0,0.00019178,2]
[327847671,1716556248982,-500.0,0.00019178,2]
[327847672,1716556248991,-500.0,0.00019178,2]
[327847673,1716556249000,-500.0,0.00019178,2]
[327847674,1716556249009,-500.0,0.00019178,2]
[327847675,1716556249018,-500.0,0.00019178,2]
[327847676,1716556249029,-500.0,0.00019178,2]
[327847677,1716556249038,-500.0,0.00019178,2]
[327847678,1716556249047,-500.0,0.00019178,2]
[327847679,1716556249057,-500.0,0.00019178,2]
[327847680,1716556249067,-500.0,0.00019178,2]
[327847681,1716556249076,-500.0,0.00019178,2]
[327847682,1716556249086,-500.0,0.00019178,2]
[327847683,1716556249095,-500.0,0.00019178,2]
[327847684,1716556249104,-542.57418475,0.00019178,2]
[327847685,1716556249114,-500.0,0.00019178,2]
[327847686,1716556249123,-500.0,0.00019178,2]
[327847687,1716556249133,-500.0,0.00019178,2]
[327847688,1716556249143,-500.0,0.00019178,2]
[327847689,1716556249152,-500.0,0.00019178,2]
[327847690,1716556249161,-200.0,0.00019178,2]
[327847691,1716556249171,-200.0,0.00019178,2]
[327847692,1716556249180,-200.0,0.00019178,2]
[327847693,1716556249189,-200.0,0.00019178,2]
[327847694,1716556249198,-200.0,0.00019178,2]
[327847695,1716556249208,-200.0,0.00019178,2]
[327847696,1716556249217,-174.0,0.00019178,2]
[327847697,1716556249226,-4315.13,0.00019178,2]
[327847698,1716556249236,-7755.57900461,0.000192,2]
[327847699,1716556249246,-886.06,0.000192,2]
[327847700,1716556249360,-1091.57,0.000192,2]
[327847701,1716556249370,-3882.63870913,0.000192,2]
[327847702,1716556249379,-415.86,0.00019411,2]
[327847703,1716556249389,-937.65,0.00019411,2]
[327847704,1716556249398,-415.86,0.00019411,2]
[327847705,1716556249409,-1738.63,0.00019411,2]
[327847706,1716556249418,-415.86,0.00019411,2]
[327847707,1716556249428,-870.34,0.00019411,2]
[327847708,1716556249437,-415.86,0.00019411,2]
[327847709,1716556249447,-1788.767352,0.00019452,2]
[327847710,1716556249456,-170.0,0.00019666,15]
[327847711,1716556249466,-1017.0,0.00019666,15]
[327847712,1716556249476,-170.0,0.00019676,15]
[327847713,1716556249485,-1017.0,0.00019676,15]
[327847714,1716556249495,-170.0,0.00019686,15]
[327847715,1716556249504,-1017.0,0.00019686,15]
[327847716,1716556249513,-238.0,0.00019696,15]
[327847717,1716556249523,-238.0,0.00019706,15]
[327847718,1716556249532,-238.0,0.00019716,15]
[327847719,1716556249542,-212.0,0.00019765,2]
[327847720,1716556249551,-168.14,0.00019784,2]
[327847721,1716556249561,-5188.06991851,0.0002,2]
[327847722,1716556249571,-862.59931804,0.0002,2]
[327847723,1716556249581,-155.0,0.0002,2]
[327847724,1716556249591,-1263.85446581,0.0002,2]
[327847725,1716556249600,-6241.7602304,0.0002,2]
[327847726,1716556249610,-238.11844231,0.0002,2]
[327847727,1716556249619,-159.01889797,0.0002,2]
[327847728,1716556249629,-457.97826669,0.0002,2]
[327847729,1716556249639,-156.08893387,0.0002,2]
[327847730,1716556249648,-1774.2987608,0.0002,2]
[327847731,1716556249659,-2229.0,0.0002,2]
[327847732,1716556249668,-2000.0,0.0002,2]
[327847733,1716556249678,-627.95805638,0.0002,2]
[327847734,1716556249688,-155.79079979,0.0002,4]
[327847735,1716556249698,-155.0,0.0002,2]
[327847736,1716556249708,-369.0,0.0002,2]
[327847737,1716556249717,-189.0,0.0002,2]
[327847738,1716556249727,-36099.6521436,0.0002,4]
[327847739,1716556249736,-491.0,0.0002,2]
[327847740,1716556249745,-200.0,0.0002,2]
[327847741,1716556249755,-179.0,0.0002,2]
[327847742,1716556249764,-2702.95159589,0.0002,7]
[327847743,1716556249774,-155.0,0.0002,2]
[327847744,1716556249784,-151.0,0.0002,2]
[327847745,1716556249798,-1886.79853737,0.0002,2]
[327847746,1716556249808,-83423.83809561,0.0002,2]
[327847747,1716556249817,-905.8412892,0.0002,2]
[327847748,1716556249827,-150.0,0.0002,2]
[327847749,1716556249836,-150.0,0.0002,2]
[327847750,1716556249845,-1000.0,0.0002,2]
[327847751,1716556249855,-7600.0,0.0002009,2]
[327847752,1716556249866,-633.59,0.00020361,2]
[327847753,1716556249878,-3000.0,0.0002037,2]
[327847754,1716556249887,-321.02,0.00020447,2]
[327847755,1716556249897,-480.73,0.00020447,2]
[327847756,1716556249907,-150.0,0.000205,2]
[327847757,1716556249918,-150.0,0.000205,2]
[327847758,1716556249927,-170.26,0.00020548,2]
[327847759,1716556249937,-2712.86013848,0.00020663,2]
[327847760,1716556249946,-5512.46730855,0.00021,2]
[327847761,1716556249956,-2000.0,0.00021,2]
[327847762,1716556249966,-1050.0,0.00021,2]
[327847763,1716556249975,-150.0,0.00021,2]
[327847764,1716556249984,-150.0,0.00021,2]
[327847765,1716556249994,-437816.0,0.000212,2]
[327847766,1716556250003,-212.0,0.00021338,3]
[327847767,1716556250013,-3743.38774493,0.00021362,2]
[327847768,1716556250022,-886.06,0.000215,2]
[327847769,1716556250031,-150.0,0.000215,3]
[327847770,1716556250041,-150.0,0.000215,3]
[327847771,1716556250050,-550.35526376,0.00021654,2]
[327847772,1716556250059,-5761.0,0.00021688,2]
[327847773,1716556250068,-289.0,0.00021688,2]
[327847774,1716556250078,-11719.0,0.000218,3]
[327847775,1716556250087,-6773.71234994,0.000219,2]
[327847776,1716556250096,-1091.57,0.000219,2]
[327847777,1716556250105,-901.0,0.000219,2]
[327847778,1716556250114,-330.35,0.00021918,2]
[327847779,1716556250125,-580.31,0.00021918,2]
[327847780,1716556250134,-2000.0,0.00021918,2]
[327847781,1716556250143,-250.0,0.00021918,2]
[327847782,1716556250153,-168.57,0.00021918,2]